bitfinex/quotes_BTCUSD_20250901
["timestamp","ask_amount","ask_price","bid_price","bid_amount"]
[1756732313516,1.26590404,109290.0,109280.0,0.00516001]
[1756732314084,1.26582404,109290.0,109280.0,0.00516001]
[1756732314281,1.11042404,109290.0,109280.0,0.00516001]
[1756732314489,1.26582404,109290.0,109280.0,0.00516001]
[1756732314710,0.7582337,109290.0,109280.0,0.00516001]
[1756732314916,0.30720167,109290.0,109280.0,0.00516001]
[1756732315067,0.80264167,109290.0,109280.0,0.00516001]
[1756732315903,1.15483201,109290.0,109280.0,0.00516001]
[1756732316332,1.15004868,109290.0,109280.0,0.00516001]
[1756732317779,0.64241834,109290.0,109280.0,0.00516001]
[1756732317979,0.79781834,109290.0,109280.0,0.00516001]
[1756732318186,0.61481899,109290.0,109280.0,0.00516001]
[1756732318381,0.79781834,109290.0,109280.0,0.00516001]
[1756732319044,0.70586235,109290.0,109280.0,0.00516001]
[1756732320820,0.55050235,109290.0,109280.0,0.00516001]
[1756732321085,1.05801269,109290.0,109280.0,0.00516001]
[1756732321547,0.90269269,109290.0,109280.0,0.00516001]
[1756732321752,1.05801269,109290.0,109280.0,0.00516001]
[1756732323209,0.70582235,109290.0,109280.0,0.00516001]
[1756732323419,1.05801269,109290.0,109280.0,0.00516001]
[1756732324194,1.05793269,109290.0,109280.0,0.00516001]
[1756732325759,0.90269269,109290.0,109280.0,0.00516001]
[1756732325957,1.05789269,109290.0,109280.0,0.00516001]
[1756732326598,0.90269269,109290.0,109280.0,0.00516001]
[1756732326808,1.05789269,109290.0,109280.0,0.00516001]
[1756732330273,1.05777269,109290.0,109280.0,0.00516001]
[1756732332151,1.05777269,109290.0,109280.0,0.00506001]
[1756732332152,1.04847354,109290.0,109280.0,0.00506001]
[1756732333006,1.04843354,109290.0,109280.0,0.00506001]
[1756732336902,1.04843354,109290.0,109280.0,0.00305001]
[1756732337357,0.71032568,109290.0,109280.0,0.00305001]
[1756732337565,1.04843354,109290.0,109280.0,0.00305001]
[1756732338198,1.04843354,109290.0,109280.0,1e-08]
[1756732338199,1.47845739,109290.0,109280.0,1e-08]
[1756732339055,1.56975621,109290.0,109280.0,1e-08]
[1756732339265,1.58951688,109290.0,109280.0,1e-08]
[1756732340704,1.59051688,109290.0,109280.0,1e-08]
[1756732341119,1.59151688,109290.0,109280.0,1e-08]
[1756732342852,1.61618849,109290.0,109280.0,1e-08]
[1756732343060,1.70810448,109290.0,109280.0,1e-08]
[1756732343496,1.70814448,109290.0,109280.0,1e-08]
[1756732346244,1.75814448,109290.0,109280.0,1e-08]
[1756732346701,2.12906523,109290.0,109280.0,1e-08]
[1756732346933,2.1512908,109290.0,109280.0,1e-08]
[1756732348698,2.39874908,109290.0,109280.0,1e-08]
[1756732348905,2.39674908,109290.0,109280.0,1e-08]
[1756732349341,2.40082832,109290.0,109280.0,1e-08]
[1756732349568,2.39882832,109290.0,109280.0,1e-08]
[1756732349774,2.36393619,109290.0,109280.0,1e-08]
[1756732349985,2.36693619,109290.0,109280.0,1e-08]
[1756732350187,2.36993619,109290.0,109280.0,1e-08]
[1756732350406,2.36693619,109290.0,109280.0,1e-08]
[1756732350824,2.36793619,109290.0,109280.0,1e-08]
[1756732352520,2.37093619,109290.0,109280.0,1e-08]
[1756732353381,2.21585619,109290.0,109280.0,1e-08]
[1756732353584,2.37157619,109290.0,109280.0,1e-08]
[1756732354650,0.20400518,109250.0,109240.0,0.0004]
[1756732354856,0.85946903,109250.0,109240.0,0.00048626]
[1756732355071,0.85946903,109250.0,109240.0,0.00252626]
[1756732355507,0.88698603,109250.0,109240.0,0.00252626]
[1756732355689,0.89176936,109250.0,109240.0,0.00252626]
[1756732356036,0.5536615,109250.0,109240.0,0.00352626]
[1756732356230,0.89374936,109250.0,109240.0,0.00352626]
[1756732356531,0.89176936,109250.0,109240.0,0.00864626]
[1756732356786,0.98368535,109250.0,109240.0,0.00864626]
[1756732357187,0.82800535,109250.0,109240.0,0.00864626]
[1756732357395,0.89172936,109250.0,109240.0,0.00864626]
[1756732357588,0.73608936,109250.0,109240.0,0.00864626]
[1756732357790,0.89176936,109250.0,109240.0,0.00864626]
[1756732358613,0.73608936,109250.0,109240.0,0.00864626]
[1756732358814,0.30668268,109250.0,109240.0,0.00864626]
[1756732359017,0.71044669,109250.0,109240.0,0.00864626]
[1756732359439,0.55476669,109250.0,109240.0,0.00864626]
[1756732359643,0.55476669,109250.0,109240.0,0.19172937]
[1756732359819,0.52724969,109250.0,109240.0,0.00864626]
[1756732360168,0.52724969,109250.0,109240.0,0.19172937]
[1756732360366,0.00478333,109250.0,109240.0,0.19172937]
[1756732360581,0.18784969,109250.0,109240.0,0.19172937]
[1756732360819,0.18306636,109250.0,109240.0,0.00864626]
[1756732361290,0.18306636,109250.0,109240.0,0.19172937]
[1756732362277,0.18306636,109250.0,109240.0,0.19072937]
[1756732362510,0.96270116,109260.0,109240.0,0.19072937]
[1756732362653,0.18306636,109250.0,109240.0,0.18760937]
[1756732362862,0.18306636,109250.0,109240.0,0.18560937]
[1756732363299,0.18306636,109250.0,109240.0,0.00964626]
[1756732363484,0.18306636,109250.0,109240.0,0.01164626]
[1756732364135,0.18306636,109250.0,109240.0,0.19472937]
[1756732364346,0.18306636,109250.0,109240.0,0.01164626]
[1756732365380,0.18306636,109250.0,109240.0,0.19472937]
[1756732368628,0.53698295,109270.0,109250.0,0.18306636]
[1756732368976,0.53698295,109270.0,109260.0,0.00516]
[1756732368977,0.19698295,109270.0,109260.0,0.00516]
[1756732369177,0.53698295,109270.0,109260.0,0.1882096]
[1756732369310,0.53698295,109270.0,109260.0,0.00516]
[1756732369531,0.53219962,109270.0,109260.0,0.00516]
[1756732369731,0.53219962,109270.0,109260.0,0.1882096]
[1756732369935,0.53698295,109270.0,109260.0,0.1882096]
[1756732370136,0.53698295,109270.0,109260.0,0.00516]
[1756732370349,0.53698295,109270.0,109260.0,0.19049772]
[1756732370546,0.53698295,109270.0,109260.0,0.00516]
[1756732372195,0.53698295,109270.0,109260.0,0.00616]
[1756732373322,0.53896295,109270.0,109260.0,0.00616]
[1756732373538,0.87509081,109270.0,109260.0,0.00616]
[1756732373970,0.53698295,109270.0,109260.0,0.00616]
[1756732375945,0.87707081,109270.0,109260.0,0.00616]
[1756732376563,0.87228748,109270.0,109260.0,0.00616]
[1756732378119,0.89979048,109270.0,109260.0,0.00616]
[1756732379865,0.55970262,109270.0,109260.0,0.00616]
[1756732380301,0.21053585,109270.0,109260.0,0.1892096]
[1756732380533,0.18303285,109270.0,109260.0,0.1892096]
[1756732380997,0.37573922,109280.0,109260.0,0.52731746]
[1756732381194,0.18303285,109270.0,109260.0,0.1860896]
[1756732381457,0.18303285,109270.0,109260.0,0.18737772]
[1756732381683,0.18303285,109270.0,109260.0,0.1850896]
[1756732381902,0.18303285,109270.0,109260.0,0.19449772]
[1756732382127,0.18303285,109270.0,109260.0,0.1922096]
[1756732383014,0.21969922,109280.0,109270.0,0.18303285]
[1756732383235,0.21969922,109280.0,109270.0,0.15824]
[1756732383486,0.21969922,109280.0,109270.0,0.16136]
[1756732383710,0.21969922,109280.0,109270.0,0.34668076]
[1756732383932,0.21969922,109280.0,109270.0,0.34439285]
[1756732384376,0.21969922,109280.0,109270.0,0.16236]
[1756732384768,0.21969922,109280.0,109270.0,0.34768076]
[1756732384891,0.21969922,109280.0,109270.0,0.34539285]
[1756732385353,0.26969922,109280.0,109270.0,0.16436]
[1756732385561,0.26969922,109280.0,109270.0,0.34968076]
[1756732385822,0.05,109280.0,109270.0,0.7774167]
[1756732386028,0.05,109280.0,109270.0,0.8477767]
[1756732386916,0.05,109280.0,109270.0,0.8467767]
[1756732387130,0.05,109280.0,109270.0,0.50866884]
[1756732387355,0.05,109280.0,109270.0,0.8507767]
[1756732387818,0.05,109280.0,109270.0,0.51266884]
[1756732388048,0.05,109280.0,109270.0,0.8507767]
[1756732388265,0.05,109280.0,109270.0,0.8487767]
[1756732388699,0.05,109280.0,109270.0,0.8527767]
[1756732388881,0.05,109280.0,109270.0,0.6965767]
[1756732389056,0.05,109280.0,109270.0,0.8526967]
[1756732389664,0.05,109280.0,109270.0,0.8525767]
[1756732393039,0.05,109280.0,109270.0,0.6965767]
[1756732393269,0.05,109280.0,109270.0,0.8525367]
[1756732394634,0.05,109280.0,109270.0,0.51434884]
[1756732394837,0.05,109280.0,109270.0,0.8524567]
[1756732397067,0.2330161,109280.0,109270.0,0.6965767]
[1756732397297,0.2330161,109280.0,109270.0,0.51430884]
[1756732397984,0.57310396,109280.0,109270.0,0.07836]
[1756732398192,0.57310396,109280.0,109270.0,0.2342]
[1756732398193,0.57568396,109280.0,109270.0,0.2342]
[1756732398787,0.57310396,109280.0,109270.0,0.2342]
[1756732399031,0.2349961,109280.0,109270.0,0.2342]
[1756732400916,0.57568396,109280.0,109270.0,0.07836]
[1756732401125,0.57568396,109280.0,109270.0,0.16396]
[1756732403148,0.91568396,109280.0,109270.0,0.16396]
[1756732403377,1.07164396,109280.0,109270.0,0.008]
[1756732404090,1.07164396,109280.0,109270.0,0.004]
[1756732404316,0.1830496,109260.0,109250.0,0.07032]
[1756732404517,0.52115746,109260.0,109250.0,0.2268]
[1756732404747,0.52314746,109260.0,109250.0,0.2268]
[1756732405001,0.18306636,109250.0,109240.0,0.00048626]
[1756732405224,0.18306636,109250.0,109240.0,0.34000937]
[1756732405450,0.18306636,109250.0,109240.0,0.34494937]
[1756732407471,0.18306636,109250.0,109240.0,0.34894937]
[1756732408131,0.18306636,109250.0,109240.0,0.35194937]
[1756732409011,0.21969049,109270.0,109250.0,0.18306636]
[1756732409224,0.55969049,109270.0,109250.0,0.52346254]
[1756732409418,0.55969049,109270.0,109260.0,0.16126]
[1756732409644,0.55969049,109270.0,109260.0,0.3443096]
[1756732410231,0.367506,109270.0,109260.0,0.3443096]
[1756732410447,0.5821669,109280.0,109260.0,0.68241746]
[1756732410647,0.18303285,109270.0,109260.0,0.4117196]
[1756732411037,0.18501285,109270.0,109260.0,0.22867]
[1756732411236,0.18501285,109270.0,109260.0,0.22768]
[1756732411454,0.18501285,109270.0,109260.0,0.22868]
[1756732412064,0.18501285,109270.0,109260.0,0.23362]
[1756732413795,0.18303285,109270.0,109260.0,0.4166696]
[1756732414747,0.18303285,109270.0,109260.0,0.23362]
[1756732416581,0.18303285,109270.0,109260.0,0.4166696]
[1756732416988,0.18501285,109270.0,109260.0,0.22868]
[1756732418867,0.52312071,109270.0,109260.0,0.22868]
[1756732419092,0.52570071,109270.0,109260.0,0.15812]
[1756732419502,0.55320471,109270.0,109260.0,0.15812]
[1756732420592,0.89320471,109270.0,109260.0,0.15812]
[1756732421555,0.89062471,109270.0,109260.0,0.15812]
[1756732421701,0.55251685,109270.0,109260.0,0.15812]
[1756732421932,0.89062471,109270.0,109260.0,0.15812]
[1756732422574,0.89062471,109270.0,109260.0,0.16328]
[1756732422575,0.55053685,109270.0,109260.0,0.16328]
[1756732422810,0.55053685,109270.0,109260.0,0.3463296]
[1756732423029,0.21053685,109270.0,109260.0,0.68443746]
[1756732423243,0.18303285,109270.0,109260.0,0.68443746]
[1756732423458,0.18303285,109270.0,109260.0,0.3463296]
[1756732424040,0.18303285,109270.0,109260.0,0.16328]
[1756732424466,0.18501285,109270.0,109260.0,0.16344]
[1756732424753,0.18303285,109270.0,109260.0,0.16344]
[1756732424955,0.43069223,109280.0,109260.0,0.68688558]
[1756732425165,0.61445223,109280.0,109270.0,0.00315]
[1756732425370,0.61445223,109280.0,109270.0,0.00516]
[1756732425795,0.18303285,109270.0,109260.0,0.3444796]
[1756732426003,0.18303285,109270.0,109260.0,0.00515]
[1756732426216,0.18303285,109270.0,109260.0,0.1634]
[1756732426731,0.18303285,109270.0,109260.0,0.3464496]
[1756732427365,0.18303285,109270.0,109260.0,0.3454496]
[1756732427755,0.18303285,109270.0,109260.0,0.1634]
[1756732428566,0.18303285,109270.0,109260.0,0.1644]
[1756732429124,0.18303285,109270.0,109260.0,0.3494496]
[1756732431168,0.18303285,109270.0,109260.0,0.75791746]
[1756732431905,0.18303285,109270.0,109260.0,0.4195696]
[1756732432911,0.6096689,109280.0,109270.0,0.18303285]
[1756732433119,0.6096689,109280.0,109270.0,0.00744791]
[1756732433912,0.6096689,109280.0,109270.0,0.19048076]
[1756732434223,0.2605181,109280.0,109270.0,0.18819285]
[1756732434391,0.2605181,109280.0,109270.0,0.52630071]
[1756732434574,0.2605181,109280.0,109270.0,0.68422071]
[1756732434777,0.2605181,109280.0,109270.0,0.68622071]
[1756732435197,0.2605181,109280.0,109270.0,0.34811285]
[1756732435396,0.2605181,109280.0,109270.0,0.19219285]
[1756732435642,0.2605181,109280.0,109270.0,0.34811285]
[1756732437759,0.077502,109280.0,109270.0,0.34811285]
[1756732438185,0.05,109280.0,109270.0,0.68622071]
[1756732439862,0.05,109280.0,109270.0,0.34791285]
[1756732440078,0.05,109280.0,109270.0,0.43982884]
[1756732440292,0.05,109280.0,109270.0,0.7779367]
[1756732440737,0.05,109280.0,109270.0,0.43986884]
[1756732440953,0.05,109280.0,109270.0,0.7779767]
[1756732444832,0.05,109280.0,109270.0,0.81954232]
[1756732445534,0.05,109280.0,109270.0,0.66378232]
[1756732445803,0.2330161,109280.0,109270.0,0.81942232]
[1756732446000,0.2330161,109280.0,109270.0,0.48127446]
[1756732446001,0.2349961,109280.0,109270.0,0.48127446]
[1756732446208,0.2349961,109280.0,109270.0,0.32051446]
[1756732446375,0.2349961,109280.0,109270.0,0.15964]
[1756732446925,0.2349961,109280.0,109270.0,0.34267285]
[1756732447362,0.2349961,109280.0,109270.0,0.15964]
[1756732447988,0.2349961,109280.0,109270.0,0.004]
[1756732448161,0.2349961,109280.0,109270.0,0.15956]
[1756732448788,0.2349961,109280.0,109270.0,0.004]
[1756732448934,0.2349961,109280.0,109270.0,0.34259285]
[1756732449368,0.2349961,109280.0,109270.0,0.15952]
[1756732449575,0.2349961,109280.0,109270.0,0.18703285]
[1756732449929,0.2349961,109280.0,109270.0,0.15952]
[1756732450300,0.57568396,109280.0,109270.0,0.004]
[1756732450523,0.57568396,109280.0,109270.0,0.15948]
[1756732450731,0.60318396,109280.0,109270.0,0.15948]
[1756732452747,0.60318396,109280.0,109270.0,0.1594]
[1756732452896,0.60318396,109280.0,109270.0,0.004]
[1756732453096,0.60318396,109280.0,109270.0,0.1594]
[1756732453296,0.60060396,109280.0,109270.0,0.1594]
[1756732453922,0.2624961,109280.0,109270.0,0.1594]
[1756732454915,0.2624961,109280.0,109270.0,0.16457]
[1756732457115,0.2624961,109280.0,109270.0,0.1594]
[1756732458378,0.2624961,109280.0,109270.0,0.16246]
[1756732458798,0.60318396,109280.0,109270.0,0.15928]
[1756732460725,0.60318396,109280.0,109270.0,0.004]
[1756732461133,0.75838396,109280.0,109270.0,0.004]
[1756732462305,0.75580396,109280.0,109270.0,0.004]
[1756732462861,0.60318396,109280.0,109270.0,0.004]
[1756732463275,0.2624961,109280.0,109270.0,0.004]
[1756732463486,0.60060396,109280.0,109270.0,0.004]
[1756732464500,0.60318396,109280.0,109270.0,0.004]
[1756732464820,0.55318396,109280.0,109270.0,0.004]
[1756732466583,0.55060396,109280.0,109270.0,0.004]
[1756732468942,0.0275,109280.0,109270.0,0.19449076]
[1756732469192,0.19214932,109290.0,109270.0,0.53031071]
[1756732469430,0.55964832,109290.0,109280.0,0.3411561]
[1756732469746,0.55964832,109290.0,109280.0,0.3432661]
[1756732470195,0.55964832,109290.0,109280.0,0.16025]
[1756732470427,0.55964832,109290.0,109280.0,0.1625377]
[1756732470645,0.55969536,109290.0,109280.0,0.3455538]
[1756732470867,0.55969536,109290.0,109280.0,0.3432661]
[1756732471718,0.55969536,109290.0,109280.0,0.3442661]
[1756732472916,0.55969536,109290.0,109280.0,0.3452661]
[1756732475579,0.02754604,109290.0,109280.0,0.3452661]
[1756732475799,4.704e-05,109290.0,109280.0,0.68337396]
[1756732476225,4.704e-05,109290.0,109280.0,0.75373396]
[1756732476639,4.704e-05,109290.0,109280.0,0.4156261]
[1756732476863,0.18304639,109290.0,109280.0,0.4156261]
[1756732477323,4.704e-05,109290.0,109280.0,0.4156261]
[1756732478731,0.18304639,109290.0,109280.0,0.4156261]
[1756732480775,4.704e-05,109290.0,109280.0,0.4156261]
[1756732480976,0.18304639,109290.0,109280.0,0.4156261]
[1756732481213,0.18503639,109290.0,109280.0,0.23241]
[1756732481414,0.18304639,109290.0,109280.0,0.23241]
[1756732481667,0.18304639,109290.0,109280.0,0.4154261]
[1756732483162,0.18304639,109290.0,109280.0,0.23241]
[1756732484481,4.704e-05,109290.0,109280.0,0.4154261]
[1756732490202,4.704e-05,109290.0,109280.0,0.75353396]
[1756732490426,4.704e-05,109290.0,109280.0,0.84544995]
[1756732490646,4.704e-05,109290.0,109280.0,1.18355781]
[1756732491070,4.704e-05,109290.0,109280.0,0.50734209]
[1756732491290,4.704e-05,109290.0,109280.0,1.18355781]
[1756732491472,4.704e-05,109290.0,109280.0,1.38355781]
[1756732491916,4.704e-05,109290.0,109280.0,1.75004881]
[1756732492352,4.704e-05,109290.0,109280.0,1.75204881]
[1756732492804,4.704e-05,109290.0,109280.0,1.75004881]
[1756732493010,4.704e-05,109290.0,109280.0,1.74904881]
[1756732493194,4.704e-05,109290.0,109280.0,1.75504881]
[1756732493397,4.704e-05,109290.0,109280.0,1.41694095]
[1756732493605,4.704e-05,109290.0,109280.0,1.41894095]
[1756732494051,4.704e-05,109290.0,109280.0,1.41694095]
[1756732494478,4.704e-05,109290.0,109280.0,1.77998763]
[1756732497288,4.704e-05,109290.0,109280.0,2.17998763]
[1756732499693,4.704e-05,109290.0,109280.0,2.18848763]
[1756732500559,4.704e-05,109290.0,109280.0,2.03360763]
[1756732500754,4.704e-05,109290.0,109280.0,2.18880763]
[1756732501004,0.10362531,109330.0,109320.0,0.18294914]
[1756732501130,0.10362531,109330.0,109320.0,0.340396]
[1756732501131,0.10306242,109330.0,109320.0,0.340396]
[1756732501329,0.10306242,109330.0,109320.0,0.33810914]
[1756732501745,0.02951611,109330.0,109320.0,0.33810914]
[1756732503097,0.21502851,109330.0,109320.0,0.33806914]
[1756732503311,0.00202711,109330.0,109320.0,0.33806914]
[1756732503730,0.52306737,109330.0,109320.0,0.33806914]
[1756732504367,0.52564737,109330.0,109320.0,0.33806914]
[1756732504594,0.52564737,109330.0,109310.0,0.28077187]
[1756732504826,0.52564737,109330.0,109310.0,0.07032]
[1756732504827,0.86174486,109320.0,109310.0,0.07032]
[1756732505039,0.89122386,109320.0,109310.0,0.2254]
[1756732505304,0.18296587,109310.0,109300.0,0.1829794]
[1756732505529,0.18298261,109300.0,109290.0,0.28991798]
[1756732505742,0.34019786,109300.0,109290.0,0.53695397]
[1756732505929,0.52565047,109300.0,109290.0,0.41754798]
[1756732506381,0.55067347,109300.0,109290.0,0.41754798]
[1756732506849,0.55067347,109300.0,109290.0,0.42154798]
[1756732508330,0.55067347,109300.0,109290.0,0.42554798]
[1756732508749,0.52318047,109300.0,109290.0,0.27042798]
[1756732508971,0.18754261,109300.0,109290.0,0.42554798]
[1756732509193,0.52565047,109300.0,109290.0,0.26131935]
[1756732509401,0.52565047,109300.0,109290.0,0.41643935]
[1756732510664,0.34019786,109300.0,109290.0,0.41643935]
[1756732510872,0.34019786,109300.0,109290.0,0.42146935]
[1756732511310,0.00209,109300.0,109290.0,0.42146935]
[1756732512037,0.36560086,109310.0,109300.0,0.18298261]
[1756732512243,0.36560086,109310.0,109300.0,0.18526989]
[1756732512244,0.55054673,109310.0,109300.0,0.18526989]
[1756732512653,0.55312673,109310.0,109300.0,0.18298261]
[1756732512898,0.55054673,109310.0,109300.0,0.18298261]
[1756732513122,0.36758086,109310.0,109300.0,0.18526989]
[1756732513332,0.55054673,109310.0,109300.0,0.18526989]
[1756732513549,0.55054673,109310.0,109300.0,0.18826989]
[1756732513776,0.55054673,109310.0,109300.0,0.003]
[1756732513993,0.55312673,109310.0,109300.0,0.003]
[1756732514652,0.55312673,109310.0,109300.0,0.005]
[1756732515420,0.55312673,109310.0,109300.0,0.18798261]
[1756732516052,0.55054673,109310.0,109300.0,0.18798261]
[1756732516555,0.55054673,109310.0,109300.0,0.005]
[1756732516754,0.55312673,109310.0,109300.0,0.005]
[1756732518162,0.21243887,109310.0,109300.0,0.18798261]
[1756732518377,0.55312673,109310.0,109300.0,0.18798261]
[1756732518786,0.55312673,109310.0,109300.0,0.005]
[1756732519438,0.89312673,109310.0,109300.0,0.005]
[1756732519633,1.04812673,109310.0,109300.0,0.005]
[1756732520054,0.89312673,109310.0,109300.0,0.005]
[1756732520256,1.04808673,109310.0,109300.0,0.005]
[1756732520462,1.04808673,109310.0,109300.0,0.002]
[1756732521298,0.18298261,109300.0,109290.0,0.40831887]
[1756732521509,0.52308047,109300.0,109290.0,0.40831887]
[1756732521708,0.52308047,109300.0,109290.0,0.22532]
[1756732522160,0.55057647,109300.0,109290.0,0.22532]
[1756732522581,0.55315647,109300.0,109290.0,0.22532]
[1756732522999,0.55057647,109300.0,109290.0,0.22532]
[1756732523233,0.55057647,109300.0,109290.0,0.40831935]
[1756732523445,0.027496,109300.0,109290.0,0.41334935]
[1756732523668,0.027496,109300.0,109290.0,0.8433732]
[1756732523892,0.5229536,109320.0,109310.0,0.18296587]
[1756732524110,0.5250436,109320.0,109310.0,0.33784587]
[1756732524563,0.5250436,109320.0,109310.0,0.33990587]
[1756732524790,0.5525346,109320.0,109310.0,0.33784587]
[1756732525015,0.21044014,109320.0,109310.0,0.34287587]
[1756732525429,0.21144014,109320.0,109310.0,0.34287587]
[1756732526097,0.028491,109320.0,109310.0,0.34287587]
[1756732526924,0.21144014,109320.0,109310.0,0.34287587]
[1756732527538,0.21044014,109320.0,109310.0,0.34287587]
[1756732527947,0.21044014,109320.0,109310.0,0.34487587]
[1756732528801,0.027491,109320.0,109310.0,0.34487587]
[1756732528979,0.21044014,109320.0,109310.0,0.34587587]
[1756732529406,0.21044014,109320.0,109310.0,0.34487587]
[1756732529806,0.21044014,109320.0,109310.0,0.34687587]
[1756732530435,0.21242014,109320.0,109310.0,0.34687587]
[1756732530647,0.550528,109320.0,109310.0,0.004]
[1756732530904,0.553108,109320.0,109310.0,0.15888]
[1756732531462,0.553108,109320.0,109310.0,0.004]
[1756732531740,0.553108,109320.0,109310.0,0.15888]
[1756732532892,0.550528,109320.0,109310.0,0.15888]
[1756732533114,0.550528,109320.0,109310.0,0.34184587]
[1756732533659,0.21242014,109320.0,109310.0,0.15888]
[1756732533871,0.21242014,109320.0,109310.0,0.34916294]
[1756732533872,0.21044014,109320.0,109310.0,0.34916294]
[1756732534088,0.21044014,109320.0,109310.0,0.34687587]
[1756732534089,0.027491,109320.0,109310.0,0.34687587]
[1756732534301,0.21044014,109320.0,109310.0,0.34687587]
[1756732534729,0.027491,109320.0,109310.0,0.34687587]
[1756732535184,0.18298307,109330.0,109320.0,0.18294914]
[1756732535395,4.711e-05,109330.0,109320.0,0.187346]
[1756732535608,4.711e-05,109330.0,109320.0,0.190416]
[1756732535849,4.711e-05,109330.0,109320.0,0.35036513]
[1756732536506,4.711e-05,109330.0,109320.0,0.35136513]
[1756732537837,4.711e-05,109330.0,109320.0,0.68947299]
[1756732538225,4.711e-05,109330.0,109320.0,0.84435299]
[1756732539129,4.711e-05,109330.0,109320.0,0.50624513]
[1756732539362,4.711e-05,109330.0,109320.0,0.84335299]
[1756732539589,4.711e-05,109330.0,109320.0,0.50524513]
[1756732539803,4.711e-05,109330.0,109320.0,0.84335299]
[1756732540491,4.711e-05,109330.0,109320.0,0.84739299]
[1756732540706,4.711e-05,109330.0,109320.0,0.85039299]
[1756732542080,4.711e-05,109330.0,109320.0,0.51228513]
[1756732542338,4.711e-05,109330.0,109320.0,0.85039299]
[1756732542542,4.711e-05,109330.0,109320.0,0.85035299]
[1756732544127,4.711e-05,109330.0,109320.0,0.87783499]
[1756732545294,4.711e-05,109330.0,109320.0,0.87779499]
[1756732547701,4.711e-05,109330.0,109320.0,0.91939104]
[1756732548079,0.60036758,109360.0,109320.0,0.91939104]
[1756732548299,0.18289904,109350.0,109330.0,0.27790461]
[1756732548690,0.18289904,109350.0,109340.0,0.15484]
[1756732549146,0.18487904,109350.0,109340.0,0.33775567]
[1756732549564,0.18487904,109350.0,109340.0,0.15484]
[1756732549772,0.18487904,109350.0,109340.0,0.33775567]
[1756732550370,0.18487904,109350.0,109340.0,0.41325567]
[1756732550574,0.18487904,109350.0,109340.0,0.41425567]
[1756732550984,0.18487904,109350.0,109340.0,0.41625567]
[1756732551642,0.18487904,109350.0,109340.0,0.26141567]
[1756732551849,0.18289904,109350.0,109340.0,0.41625567]
[1756732552893,4.71e-05,109360.0,109350.0,0.18289894]
[1756732553096,0.0020271,109360.0,109350.0,0.19036517]
[1756732553358,0.0020271,109360.0,109350.0,0.18807894]
[1756732553556,0.18490932,109360.0,109350.0,0.34291894]
[1756732553877,0.19497181,109360.0,109350.0,0.34291894]
[1756732554302,0.18490932,109360.0,109350.0,0.34291894]
[1756732557201,0.18490932,109360.0,109350.0,0.34391894]
[1756732558000,0.18490932,109360.0,109350.0,0.34591894]
[1756732559567,0.18490932,109360.0,109350.0,0.003]
[1756732559783,0.52559718,109360.0,109350.0,0.15784]
[1756732559986,0.53578239,109360.0,109350.0,0.15784]
[1756732560142,0.53320239,109360.0,109350.0,0.15784]
[1756732560746,0.19509453,109360.0,109350.0,0.34284894]
[1756732560992,4.71e-05,109360.0,109350.0,0.34591894]
[1756732561603,0.18292932,109360.0,109350.0,0.34591894]
[1756732561815,4.71e-05,109360.0,109350.0,0.34591894]
[1756732562672,0.18292932,109360.0,109350.0,0.34591894]
[1756732562882,0.19462337,109360.0,109350.0,0.1578]
[1756732563087,0.19462337,109360.0,109350.0,0.34069894]
[1756732563293,0.34013496,109360.0,109350.0,0.34376894]
[1756732563726,0.52301718,109360.0,109350.0,0.34376894]
[1756732563930,0.18490932,109360.0,109350.0,0.34376894]
[1756732564344,0.18490932,109360.0,109350.0,0.34587894]
[1756732567458,0.0020271,109360.0,109350.0,0.34587894]
[1756732567656,0.18490932,109360.0,109350.0,0.34587894]
[1756732570762,0.18490932,109360.0,109350.0,0.34069894]
[1756732571081,0.18490932,109360.0,109350.0,0.34375894]
[1756732571500,0.18490932,109360.0,109350.0,0.34589894]
[1756732571986,0.18490932,109360.0,109350.0,0.34069894]
[1756732572209,0.18490932,109360.0,109350.0,0.18589894]
[1756732572454,0.52301718,109360.0,109350.0,0.34069894]
[1756732572674,0.86559718,109360.0,109350.0,0.003]
[1756732572896,0.86559718,109360.0,109350.0,0.1578]
[1756732573141,0.52748932,109360.0,109350.0,0.1578]
[1756732573373,0.86559718,109360.0,109350.0,0.1578]
[1756732574050,0.86559718,109360.0,109350.0,0.1548]
[1756732579332,0.18293189,109340.0,109320.0,0.25628914]
[1756732579545,0.33810786,109330.0,109320.0,0.34820513]
[1756732579755,0.52103975,109340.0,109320.0,0.50514513]
[1756732580132,0.52103975,109340.0,109320.0,0.50208513]
[1756732580470,0.52103975,109340.0,109330.0,0.3407924]
[1756732580641,0.18293189,109340.0,109330.0,0.1881324]
[1756732580855,0.18293189,109340.0,109330.0,0.3429324]
[1756732581281,0.18293189,109340.0,109330.0,0.1881324]
[1756732581491,0.53015174,109350.0,109330.0,0.3429324]
[1756732581688,0.18289894,109350.0,109340.0,0.18826211]
[1756732581857,0.18289894,109350.0,109340.0,0.25839567]
[1756732582571,0.5229868,109350.0,109340.0,0.07028]
[1756732582772,0.5255668,109350.0,109340.0,0.22508]
[1756732582913,0.5255668,109350.0,109340.0,0.07028]
[1756732583124,0.5255668,109350.0,109340.0,0.22508]
[1756732583557,0.5229868,109350.0,109340.0,0.22508]
[1756732584400,0.5229868,109350.0,109340.0,0.22708]
[1756732584846,0.5255668,109350.0,109340.0,0.22708]
[1756732585738,0.5255668,109350.0,109340.0,0.22808]
[1756732586170,0.5229868,109350.0,109340.0,0.22808]
[1756732586422,0.5255668,109350.0,109340.0,0.22808]
[1756732586649,0.5229868,109350.0,109340.0,0.22808]
[1756732586891,0.5229868,109350.0,109340.0,0.23328]
[1756732587103,0.5229868,109350.0,109340.0,0.22808]
[1756732587981,0.5229868,109350.0,109340.0,0.07328]
[1756732588170,0.5255668,109350.0,109340.0,0.22804]
[1756732588307,0.5229868,109350.0,109340.0,0.22804]
[1756732588747,0.5255668,109350.0,109340.0,0.22804]
[1756732589387,0.5255668,109350.0,109340.0,0.003]
[1756732589595,1.20367466,109350.0,109340.0,0.003]
[1756732589803,1.20367466,109350.0,109340.0,0.15776]
[1756732590411,1.20367466,109350.0,109340.0,0.15676]
[1756732591066,1.20367466,109350.0,109340.0,0.15476]
[1756732591773,0.52745894,109350.0,109340.0,0.15476]
[1756732591985,1.20367466,109350.0,109340.0,0.15476]
[1756732592195,0.18291567,109340.0,109330.0,0.00306]
[1756732592394,0.52102353,109340.0,109330.0,0.15782]
[1756732592595,0.32244223,109340.0,109330.0,0.15476]
[1756732592802,0.1829324,109330.0,109320.0,0.26543659]
[1756732593012,0.1829324,109330.0,109320.0,0.42233659]
[1756732593518,0.5033679,109340.0,109320.0,0.42233659]
[1756732593739,0.5033679,109340.0,109330.0,0.00306]
[1756732593956,0.5033679,109340.0,109330.0,0.0062]
[1756732594167,0.5053479,109340.0,109330.0,0.0062]